{"text_format":"1","workbook":"xlsx","n_sheets":7,"sheets":["Tableau de bord","Vente Jour","Journal de caisse","Recap Mensuel","Recap Articles","Réception","Fournisseur & Stock"],"not_rendered":{"charts":0,"images":0,"macros":1,"external_links":0,"defined_names":1,"comments":0,"pivot_tables":0},"unopened":[],"bounds":{"document_bytes":16777216,"sheet_cells":100000,"rows_first":2000,"rows_last":500,"rows_between":2000,"halvings":0,"cell_chars":16384,"cell_head_chars":4096},"cells_cut":0,"cells_raw":0,"read":"whole","date_system":"1900"}

{"sheet":"Tableau de bord","index":0,"n_rows":0,"n_cols":0,"rows_kept":0,"cut":false,"hidden":false,"merged":[]}

{"sheet":"Vente Jour","index":1,"n_rows":275,"n_cols":9,"rows_kept":275,"cut":false,"hidden":false,"merged":[[4,0,4,1],[6,6,7,6],[10,6,11,6],[14,6,15,6],[16,6,17,6],[12,0,12,1],[17,0,17,1],[21,6,22,6],[23,6,25,6],[5,0,5,1],[6,0,6,1],[7,0,7,1],[0,0,0,3],[31,0,31,1],[19,0,19,1],[20,0,20,1],[21,0,21,1],[22,0,22,1],[23,0,23,1],[24,0,24,1],[13,0,13,1],[14,0,14,1],[15,0,15,1],[16,0,16,1],[25,0,25,1],[26,0,26,1],[27,0,27,1],[28,0,28,1],[2,6,3,6],[2,8,3,8],[35,0,35,1],[2,0,2,1],[3,0,3,1],[32,0,32,1],[33,0,33,1],[34,0,34,1],[29,0,29,1],[30,0,30,1],[8,0,8,1],[18,0,18,1],[9,0,9,1],[10,0,10,1],[11,0,11,1]]}
["SUIVI VENTES JOUR",null,null,null,null,null,{"$f":"TODAY()","v":"2017-09-21"}]
[null,null,null,"QTT","PU TTC","TOTAL"]
["Prestation de service",null,null,null,null,null,"Total Articles",null,"  MODE DE REGLEMENT"]
["Prestation de service",null,null,1,10,{"$f":"IF(AND(AND(D4=\"\"),E4=\"\"),\"\",D4*E4)","v":10}]
["Fournisseur ZAO",null,null,null,null,{"$f":"IF(AND(AND(D5=\"\"),E5=\"\"),\"\",D5*E5)","v":""},{"$f":"SUM(D6:D35)","v":0}]
["Accessoire",null,null,null,null,""]
["Produit vente",null,null,null,null,"","Total Prestations"]
["Testeur",null,null,null,null,""]
["FOURNISSEUR BOY DIFFUSION",null,null,null,null,"",{"$f":"SUM(D4)","v":1}]
["Accessoire",null,null,null,null,""]
["Produit vente",null,null,null,null,"","Total TTC Articles"]
["Testeur",null,null,null,null,""]
["FOURNISSEUR ARTICLES DE PARIS",null,null,null,null,"",{"$f":"SUM(F6:F35)","v":0}]
["Bijou",null,null,null,null,""]
["Foulard","Foulard",null,null,null,"","Total TTC Prestations"]
["Ceinture","Ceinture",null,null,null,""]
["Prêt à porter","Prêt à porter",null,null,null,"",{"$f":"SUM(F4)","v":10}]
["Chapeau","Chapeau",null,null,null,""]
["Sac","Sac",null,null,null,""]
["Maroquinerie","Maroquinerie",null,null,null,""]
["Chaussure","Chaussure",null,null,null,""]
["Divers","Divers",null,null,null,"","MONTANT TOTAL TTC"]
["FOURNISSEUR AUTOUR D'ELLE",null,null,null,null,""]
["Bijou",null,null,null,null,"",{"$f":"SUM(G13+G17)","v":10}]
["Foulard","Foulard",null,null,null,""]
["Ceinture","Ceinture",null,null,null,""]
["Prêt à porter","Prêt à porter",null,null,null,""]
["Chapeau","Chapeau",null,null,null,""]
["Sac","Sac",null,null,null,""]
["Maroquinerie","Maroquinerie",null,null,null,""]
["Chaussure","Chaussure",null,null,null,""]
["Divers","Divers",null,null,null,""]
["FOURNISSEUR CHARME D'ORIENT",null,null,null,null,""]
["CABINE",null,null,null,null,""]
["VENTE",null,null,null,null,""]
[]
[]
[]
[]
[]
[]
[]
[]
[]
[]
[]
[]
[]
[]
[]
[]
[]
[]
[]
[]
[]
[]
[]
[]
[]
[]
[]
[]
[]
[]
[]
[]
[]
[]
[]
[]
[]
[]
[]
[]
[]
[]
[]
[]
[]
[]
[]
[]
[]
[]
[]
[]
[]
[]
[]
[]
[]
[]
[]
[]
[]
[]
[]
[]
[]
[]
[]
[]
[]
[]
[]
[]
[]
[]
[]
[]
[]
[]
[]
[]
[]
[]
[]
[]
[]
[]
[]
[]
[]
[]
[]
[]
[]
[]
[]
[]
[]
[]
[]
[]
[]
[]
[]
[]
[]
[]
[]
[]
[]
[]
[]
[]
[]
[]
[]
[]
[]
[]
[]
[]
[]
[]
[]
[]
[]
[]
[]
[]
[]
[]
[]
[]
[]
[]
[]
[]
[]
[]
[]
[]
[]
[]
[]
[]
[]
[]
[]
[]
[]
[]
[]
[]
[]
[]
[]
[]
[]
[]
[]
[]
[]
[]
[]
[]
[]
[]
[]
[]
[]
[]
[]
[]
[]
[]
[]
[]
[]
[]
[]
[]
[]
[]
[]
[]
[]
[]
[]
[]
[]
[]
[]
[]
[]
[]
[]
[]
[]
[]
[]
[]
[]
[]
[]
[]
[]
[]
[]
[]
[]
[]
[]
[]
[]
[]
[]
[]
[]
[]
[]
[]
[]
[]
[]
[]
[]
[]
[]
[]
[]
[]
[]
[]
[]
[]
[]
[]
[]
[]
[]
[null,null,null,null,null,20]

{"sheet":"Journal de caisse","index":2,"n_rows":379,"n_cols":10,"rows_kept":379,"cut":false,"hidden":false,"merged":[[126,0,126,8],[2,0,2,8],[0,0,0,8],[34,0,34,8],[63,0,63,8],[95,0,95,8],[347,0,347,8],[158,0,158,8],[189,0,189,8],[221,0,221,8],[253,0,253,8],[284,0,284,8],[316,0,316,8]]}
[]
["DATE",null,"PRESTA","VENTE",null,"ESPECE","CB","CHEQUE",null,"TOTAL "]
["JANVIER",null,null,null,null,null,null,null,null,{"$f":"SUM(J4:J34)","v":0}]
["2017-01-01",null,null,null,null,null,null,null,null,{"$f":"IF(AND(AND(AND(F4=\"\"),G4=\"\"),H4=\"\"),\"\",SUM(F4:H4))","v":""}]
["2017-01-02",null,null,null,null,null,null,null,null,{"$f":"IF(AND(AND(AND(F5=\"\"),G5=\"\"),H5=\"\"),\"\",SUM(F5:H5))","v":""}]
["2017-01-03",null,null,null,null,null,null,null,null,""]
["2017-01-04",null,null,null,null,null,null,null,null,""]
["2017-01-05",null,null,null,null,null,null,null,null,""]
["2017-01-06",null,null,null,null,null,null,null,null,""]
["2017-01-07",null,null,null,null,null,null,null,null,""]
["2017-01-08",null,null,null,null,null,null,null,null,""]
["2017-01-09",null,null,null,null,null,null,null,null,""]
["2017-01-10",null,null,null,null,null,null,null,null,""]
["2017-01-11",null,null,null,null,null,null,null,null,""]
["2017-01-12",null,null,null,null,null,null,null,null,""]
["2017-01-13",null,null,null,null,null,null,null,null,""]
["2017-01-14",null,null,null,null,null,null,null,null,""]
["2017-01-15",null,null,null,null,null,null,null,null,""]
["2017-01-16",null,null,null,null,null,null,null,null,""]
["2017-01-17",null,null,null,null,null,null,null,null,""]
["2017-01-18",null,null,null,null,null,null,null,null,""]
["2017-01-19",null,null,null,null,null,null,null,null,""]
["2017-01-20",null,null,null,null,null,null,null,null,""]
["2017-01-21",null,null,null,null,null,null,null,null,""]
["2017-01-22",null,null,null,null,null,null,null,null,""]
["2017-01-23",null,null,null,null,null,null,null,null,""]
["2017-01-24",null,null,null,null,null,null,null,null,""]
["2017-01-25",null,null,null,null,null,null,null,null,""]
["2017-01-26",null,null,null,null,null,null,null,null,""]
["2017-01-27",null,null,null,null,null,null,null,null,""]
["2017-01-28",null,null,null,null,null,null,null,null,""]
["2017-01-29",null,null,null,null,null,null,null,null,""]
["2017-01-30",null,null,null,null,null,null,null,null,""]
["2017-01-31",null,null,null,null,null,null,null,null,""]
["FEVRIER",null,null,null,null,null,null,null,null,{"$f":"SUM(J36:J63)","v":0}]
["2017-02-01",null,null,null,null,null,null,null,null,""]
["2017-02-02",null,null,null,null,null,null,null,null,""]
["2017-02-03",null,null,null,null,null,null,null,null,""]
["2017-02-04",null,null,null,null,null,null,null,null,""]
["2017-02-05",null,null,null,null,null,null,null,null,""]
["2017-02-06",null,null,null,null,null,null,null,null,""]
["2017-02-07",null,null,null,null,null,null,null,null,""]
["2017-02-08",null,null,null,null,null,null,null,null,""]
["2017-02-09",null,null,null,null,null,null,null,null,""]
["2017-02-10",null,null,null,null,null,null,null,null,""]
["2017-02-11",null,null,null,null,null,null,null,null,""]
["2017-02-12",null,null,null,null,null,null,null,null,""]
["2017-02-13",null,null,null,null,null,null,null,null,""]
["2017-02-14",null,null,null,null,null,null,null,null,""]
["2017-02-15",null,null,null,null,null,null,null,null,""]
["2017-02-16",null,null,null,null,null,null,null,null,""]
["2017-02-17",null,null,null,null,null,null,null,null,""]
["2017-02-18",null,null,null,null,null,null,null,null,""]
["2017-02-19",null,null,null,null,null,null,null,null,""]
["2017-02-20",null,null,null,null,null,null,null,null,""]
["2017-02-21",null,null,null,null,null,null,null,null,""]
["2017-02-22",null,null,null,null,null,null,null,null,""]
["2017-02-23",null,null,null,null,null,null,null,null,""]
["2017-02-24",null,null,null,null,null,null,null,null,""]
["2017-02-25",null,null,null,null,null,null,null,null,""]
["2017-02-26",null,null,null,null,null,null,null,null,""]
["2017-02-27",null,null,null,null,null,null,null,null,""]
["2017-02-28",null,null,null,null,null,null,null,null,""]
["MARS",null,null,null,null,null,null,null,null,{"$f":"SUM(J67:J95)","v":0}]
["2017-03-01",null,null,null,null,null,null,null,null,""]
["2017-03-02",null,null,null,null,null,null,null,null,""]
["2017-03-03",null,null,null,null,null,null,null,null,""]
["2017-03-04",null,null,null,null,null,null,null,null,""]
["2017-03-05",null,null,null,null,null,null,null,null,{"$f":"IF(AND(AND(AND(F69=\"\"),G69=\"\"),H69=\"\"),\"\",SUM(F69:H69))","v":""}]
["2017-03-06",null,null,null,null,null,null,null,null,""]
["2017-03-07",null,null,null,null,null,null,null,null,""]
["2017-03-08",null,null,null,null,null,null,null,null,""]
["2017-03-09",null,null,null,null,null,null,null,null,""]
["2017-03-10",null,null,null,null,null,null,null,null,""]
["2017-03-11",null,null,null,null,null,null,null,null,""]
["2017-03-12",null,null,null,null,null,null,null,null,""]
["2017-03-13",null,null,null,null,null,null,null,null,""]
["2017-03-14",null,null,null,null,null,null,null,null,""]
["2017-03-15",null,null,null,null,null,null,null,null,""]
["2017-03-16",null,null,null,null,null,null,null,null,""]
["2017-03-17",null,null,null,null,null,null,null,null,""]
["2017-03-18",null,null,null,null,null,null,null,null,""]
["2017-03-19",null,null,null,null,null,null,null,null,""]
["2017-03-20",null,null,null,null,null,null,null,null,""]
["2017-03-21",null,null,null,null,null,null,null,null,""]
["2017-03-22",null,null,null,null,null,null,null,null,""]
["2017-03-23",null,null,null,null,null,null,null,null,""]
["2017-03-24",null,null,null,null,null,null,null,null,""]
["2017-03-25",null,null,null,null,null,null,null,null,""]
["2017-03-26",null,null,null,null,null,null,null,null,""]
["2017-03-27",null,null,null,null,null,null,null,null,""]
["2017-03-28",null,null,null,null,null,null,null,null,""]
["2017-03-29",null,null,null,null,null,null,null,null,""]
["2017-03-30",null,null,null,null,null,null,null,null,""]
["2017-03-31",null,null,null,null,null,null,null,null,""]
["AVRIL",null,null,null,null,null,null,null,null,{"$f":"SUM(J97:J126)","v":0}]
["2017-04-01",null,null,null,null,null,null,null,null,""]
["2017-04-02",null,null,null,null,null,null,null,null,""]
["2017-04-03",null,null,null,null,null,null,null,null,""]
["2017-04-04",null,null,null,null,null,null,null,null,""]
["2017-04-05",null,null,null,null,null,null,null,null,""]
["2017-04-06",null,null,null,null,null,null,null,null,""]
["2017-04-07",null,null,null,null,null,null,null,null,""]
["2017-04-08",null,null,null,null,null,null,null,null,""]
["2017-04-09",null,null,null,null,null,null,null,null,""]
["2017-04-10",null,null,null,null,null,null,null,null,""]
["2017-04-11",null,null,null,null,null,null,null,null,""]
["2017-04-12",null,null,null,null,null,null,null,null,""]
["2017-04-13",null,null,null,null,null,null,null,null,""]
["2017-04-14",null,null,null,null,null,null,null,null,""]
["2017-04-15",null,null,null,null,null,null,null,null,""]
["2017-04-16",null,null,null,null,null,null,null,null,""]
["2017-04-17",null,null,null,null,null,null,null,null,""]
["2017-04-18",null,null,null,null,null,null,null,null,""]
["2017-04-19",null,null,null,null,null,null,null,null,""]
["2017-04-20",null,null,null,null,null,null,null,null,""]
["2017-04-21",null,null,null,null,null,null,null,null,""]
["2017-04-22",null,null,null,null,null,null,null,null,""]
["2017-04-23",null,null,null,null,null,null,null,null,""]
["2017-04-24",null,null,null,null,null,null,null,null,""]
["2017-04-25",null,null,null,null,null,null,null,null,""]
["2017-04-26",null,null,null,null,null,null,null,null,""]
["2017-04-27",null,null,null,null,null,null,null,null,""]
["2017-04-28",null,null,null,null,null,null,null,null,""]
["2017-04-29",null,null,null,null,null,null,null,null,""]
["2017-04-30",null,null,null,null,null,null,null,null,""]
["MAI",null,null,null,null,null,null,null,null,{"$f":"SUM(J128:J158)","v":0}]
["2017-05-01",null,null,null,null,null,null,null,null,""]
["2017-05-02",null,null,null,null,null,null,null,null,""]
["2017-05-03",null,null,null,null,null,null,null,null,""]
["2017-05-04",null,null,null,null,null,null,null,null,""]
["2017-05-05",null,null,null,null,null,null,null,null,""]
["2017-05-06",null,null,null,null,null,null,null,null,{"$f":"IF(AND(AND(AND(F133=\"\"),G133=\"\"),H133=\"\"),\"\",SUM(F133:H133))","v":""}]
["2017-05-07",null,null,null,null,null,null,null,null,""]
["2017-05-08",null,null,null,null,null,null,null,null,""]
["2017-05-09",null,null,null,null,null,null,null,null,""]
["2017-05-10",null,null,null,null,null,null,null,null,""]
["2017-05-11",null,null,null,null,null,null,null,null,""]
["2017-05-12",null,null,null,null,null,null,null,null,""]
["2017-05-13",null,null,null,null,null,null,null,null,""]
["2017-05-14",null,null,null,null,null,null,null,null,""]
["2017-05-15",null,null,null,null,null,null,null,null,""]
["2017-05-16",null,null,null,null,null,null,null,null,""]
["2017-05-17",null,null,null,null,null,null,null,null,""]
["2017-05-18",null,null,null,null,null,null,null,null,""]
["2017-05-19",null,null,null,null,null,null,null,null,""]
["2017-05-20",null,null,null,null,null,null,null,null,""]
["2017-05-21",null,null,null,null,null,null,null,null,""]
["2017-05-22",null,null,null,null,null,null,null,null,""]
["2017-05-23",null,null,null,null,null,null,null,null,""]
["2017-05-24",null,null,null,null,null,null,null,null,""]
["2017-05-25",null,null,null,null,null,null,null,null,""]
["2017-05-26",null,null,null,null,null,null,null,null,""]
["2017-05-27",null,null,null,null,null,null,null,null,""]
["2017-05-28",null,null,null,null,null,null,null,null,""]
["2017-05-29",null,null,null,null,null,null,null,null,""]
["2017-05-30",null,null,null,null,null,null,null,null,""]
["2017-05-31",null,null,null,null,null,null,null,null,""]
["JUIN",null,null,null,null,null,null,null,null,{"$f":"SUM(J160:J189)","v":0}]
["2017-06-01",null,null,null,null,null,null,null,null,""]
["2017-06-02",null,null,null,null,null,null,null,null,""]
["2017-06-03",null,null,null,null,null,null,null,null,""]
["2017-06-04",null,null,null,null,null,null,null,null,""]
["2017-06-05",null,null,null,null,null,null,null,null,""]
["2017-06-06",null,null,null,null,null,null,null,null,""]
["2017-06-07",null,null,null,null,null,null,null,null,""]
["2017-06-08",null,null,null,null,null,null,null,null,""]
["2017-06-09",null,null,null,null,null,null,null,null,""]
["2017-06-10",null,null,null,null,null,null,null,null,""]
["2017-06-11",null,null,null,null,null,null,null,null,""]
["2017-06-12",null,null,null,null,null,null,null,null,""]
["2017-06-13",null,null,null,null,null,null,null,null,""]
["2017-06-14",null,null,null,null,null,null,null,null,""]
["2017-06-15",null,null,null,null,null,null,null,null,""]
["2017-06-16",null,null,null,null,null,null,null,null,""]
["2017-06-17",null,null,null,null,null,null,null,null,""]
["2017-06-18",null,null,null,null,null,null,null,null,""]
["2017-06-19",null,null,null,null,null,null,null,null,""]
["2017-06-20",null,null,null,null,null,null,null,null,""]
["2017-06-21",null,null,null,null,null,null,null,null,""]
["2017-06-22",null,null,null,null,null,null,null,null,""]
["2017-06-23",null,null,null,null,null,null,null,null,""]
["2017-06-24",null,null,null,null,null,null,null,null,""]
["2017-06-25",null,null,null,null,null,null,null,null,""]
["2017-06-26",null,null,null,null,null,null,null,null,""]
["2017-06-27",null,null,null,null,null,null,null,null,""]
["2017-06-28",null,null,null,null,null,null,null,null,""]
["2017-06-29",null,null,null,null,null,null,null,null,""]
["2017-06-30",null,null,null,null,null,null,null,null,""]
["JUILLET",null,null,null,null,null,null,null,null,{"$f":"SUM(J191:J221)","v":0}]
["2017-07-01",null,null,null,null,null,null,null,null,""]
["2017-07-02",null,null,null,null,null,null,null,null,""]
["2017-07-03",null,null,null,null,null,null,null,null,""]
["2017-07-04",null,null,null,null,null,null,null,null,""]
["2017-07-05",null,null,null,null,null,null,null,null,""]
["2017-07-06",null,null,null,null,null,null,null,null,""]
["2017-07-07",null,null,null,null,null,null,null,null,{"$f":"IF(AND(AND(AND(F197=\"\"),G197=\"\"),H197=\"\"),\"\",SUM(F197:H197))","v":""}]
["2017-07-08",null,null,null,null,null,null,null,null,""]
["2017-07-09",null,null,null,null,null,null,null,null,""]
["2017-07-10",null,null,null,null,null,null,null,null,""]
["2017-07-11",null,null,null,null,null,null,null,null,""]
["2017-07-12",null,null,null,null,null,null,null,null,""]
["2017-07-13",null,null,null,null,null,null,null,null,""]
["2017-07-14",null,null,null,null,null,null,null,null,""]
["2017-07-15",null,null,null,null,null,null,null,null,""]
["2017-07-16",null,null,null,null,null,null,null,null,""]
["2017-07-17",null,null,null,null,null,null,null,null,""]
["2017-07-18",null,null,null,null,null,null,null,null,""]
["2017-07-19",null,null,null,null,null,null,null,null,""]
["2017-07-20",null,null,null,null,null,null,null,null,""]
["2017-07-21",null,null,null,null,null,null,null,null,""]
["2017-07-22",null,null,null,null,null,null,null,null,""]
["2017-07-23",null,null,null,null,null,null,null,null,""]
["2017-07-24",null,null,null,null,null,null,null,null,""]
["2017-07-25",null,null,null,null,null,null,null,null,""]
["2017-07-26",null,null,null,null,null,null,null,null,""]
["2017-07-27",null,null,null,null,null,null,null,null,""]
["2017-07-28",null,null,null,null,null,null,null,null,""]
["2017-07-29",null,null,null,null,null,null,null,null,""]
["2017-07-30",null,null,null,null,null,null,null,null,""]
["2017-07-31",null,null,null,null,null,null,null,null,""]
["AOUT",null,null,null,null,null,null,null,null,{"$f":"SUM(J223:J253)","v":0}]
["2017-08-01",null,null,null,null,null,null,null,null,""]
["2017-08-02",null,null,null,null,null,null,null,null,""]
["2017-08-03",null,null,null,null,null,null,null,null,""]
["2017-08-04",null,null,null,null,null,null,null,null,""]
["2017-08-05",null,null,null,null,null,null,null,null,""]
["2017-08-06",null,null,null,null,null,null,null,null,""]
["2017-08-07",null,null,null,null,null,null,null,null,""]
["2017-08-08",null,null,null,null,null,null,null,null,""]
["2017-08-09",null,null,null,null,null,null,null,null,""]
["2017-08-10",null,null,null,null,null,null,null,null,""]
["2017-08-11",null,null,null,null,null,null,null,null,""]
["2017-08-12",null,null,null,null,null,null,null,null,""]
["2017-08-13",null,null,null,null,null,null,null,null,""]
["2017-08-14",null,null,null,null,null,null,null,null,""]
["2017-08-15",null,null,null,null,null,null,null,null,""]
["2017-08-16",null,null,null,null,null,null,null,null,""]
["2017-08-17",null,null,null,null,null,null,null,null,""]
["2017-08-18",null,null,null,null,null,null,null,null,""]
["2017-08-19",null,null,null,null,null,null,null,null,""]
["2017-08-20",null,null,null,null,null,null,null,null,""]
["2017-08-21",null,null,null,null,null,null,null,null,""]
["2017-08-22",null,null,null,null,null,null,null,null,""]
["2017-08-23",null,null,null,null,null,null,null,null,""]
["2017-08-24",null,null,null,null,null,null,null,null,""]
["2017-08-25",null,null,null,null,null,null,null,null,""]
["2017-08-26",null,null,null,null,null,null,null,null,""]
["2017-08-27",null,null,null,null,null,null,null,null,""]
["2017-08-28",null,null,null,null,null,null,null,null,""]
["2017-08-29",null,null,null,null,null,null,null,null,""]
["2017-08-30",null,null,null,null,null,null,null,null,""]
["2017-08-31",null,null,null,null,null,null,null,null,""]
["SEPTEMBRE",null,null,null,null,null,null,null,null,{"$f":"SUM(J255:J284)","v":50}]
["2017-09-01",null,null,null,null,null,null,null,null,""]
["2017-09-02",null,null,null,null,null,null,null,null,""]
["2017-09-03",null,null,null,null,null,null,null,null,""]
["2017-09-04",null,null,null,null,null,null,null,null,""]
["2017-09-05",null,null,null,null,null,null,null,null,""]
["2017-09-06",null,null,null,null,null,null,null,null,""]
["2017-09-07",null,null,null,null,null,null,null,null,{"$f":"IF(AND(AND(AND(F261=\"\"),G261=\"\"),H261=\"\"),\"\",SUM(F261:H261))","v":""}]
["2017-09-08",null,null,null,null,null,null,null,null,""]
["2017-09-09",null,null,null,null,null,null,null,null,""]
["2017-09-10",null,null,null,null,null,null,null,null,""]
["2017-09-11",null,null,null,null,null,null,null,null,""]
["2017-09-12",null,null,null,null,null,null,null,null,""]
["2017-09-13",null,null,null,null,null,null,null,null,""]
["2017-09-14",null,null,null,null,null,null,null,null,""]
["2017-09-15",null,null,null,null,null,null,null,null,""]
["2017-09-16",null,null,null,null,null,null,null,null,""]
["2017-09-17",null,null,null,null,null,null,null,null,""]
["2017-09-18",null,null,null,null,null,null,null,null,""]
["2017-09-19",null,null,null,null,null,null,null,null,""]
["2017-09-20",null,null,null,null,null,null,null,null,""]
["2017-09-21",null,1,1,null,20,20,10,null,50]
["2017-09-22",null,null,null,null,null,null,null,null,""]
["2017-09-23",null,null,null,null,null,null,null,null,""]
["2017-09-24",null,null,null,null,null,null,null,null,""]
["2017-09-25",null,null,null,null,null,null,null,null,""]
["2017-09-26",null,null,null,null,null,null,null,null,""]
["2017-09-27",null,null,null,null,null,null,null,null,""]
["2017-09-28",null,null,null,null,null,null,null,null,""]
["2017-09-29",null,null,null,null,null,null,null,null,""]
["2017-09-30",null,null,null,null,null,null,null,null,""]
["OCTOBRE",null,null,null,null,null,null,null,null,{"$f":"SUM(J286:J316)","v":0}]
["2017-10-01",null,null,null,null,null,null,null,null,""]
["2017-10-02",null,null,null,null,null,null,null,null,""]
["2017-10-03",null,null,null,null,null,null,null,null,""]
["2017-10-04",null,null,null,null,null,null,null,null,""]
["2017-10-05",null,null,null,null,null,null,null,null,""]
["2017-10-06",null,null,null,null,null,null,null,null,""]
["2017-10-07",null,null,null,null,null,null,null,null,""]
["2017-10-08",null,null,null,null,null,null,null,null,""]
["2017-10-09",null,null,null,null,null,null,null,null,""]
["2017-10-10",null,null,null,null,null,null,null,null,""]
["2017-10-11",null,null,null,null,null,null,null,null,""]
["2017-10-12",null,null,null,null,null,null,null,null,""]
["2017-10-13",null,null,null,null,null,null,null,null,""]
["2017-10-14",null,null,null,null,null,null,null,null,""]
["2017-10-15",null,null,null,null,null,null,null,null,""]
["2017-10-16",null,null,null,null,null,null,null,null,""]
["2017-10-17",null,null,null,null,null,null,null,null,""]
["2017-10-18",null,null,null,null,null,null,null,null,""]
["2017-10-19",null,null,null,null,null,null,null,null,""]
["2017-10-20",null,null,null,null,null,null,null,null,""]
["2017-10-21",null,null,null,null,null,null,null,null,""]
["2017-10-22",null,null,null,null,null,null,null,null,""]
["2017-10-23",null,null,null,null,null,null,null,null,""]
["2017-10-24",null,null,null,null,null,null,null,null,""]
["2017-10-25",null,null,null,null,null,null,null,null,""]
["2017-10-26",null,null,null,null,null,null,null,null,""]
["2017-10-27",null,null,null,null,null,null,null,null,""]
["2017-10-28",null,null,null,null,null,null,null,null,""]
["2017-10-29",null,null,null,null,null,null,null,null,""]
["2017-10-30",null,null,null,null,null,null,null,null,""]
["2017-10-31",null,null,null,null,null,null,null,null,""]
["NOVEMBRE",null,null,null,null,null,null,null,null,{"$f":"SUM(J318:J347)","v":0}]
["2017-11-01",null,null,null,null,null,null,null,null,""]
["2017-11-02",null,null,null,null,null,null,null,null,""]
["2017-11-03",null,null,null,null,null,null,null,null,""]
["2017-11-04",null,null,null,null,null,null,null,null,""]
["2017-11-05",null,null,null,null,null,null,null,null,""]
["2017-11-06",null,null,null,null,null,null,null,null,""]
["2017-11-07",null,null,null,null,null,null,null,null,""]
["2017-11-08",null,null,null,null,null,null,null,null,{"$f":"IF(AND(AND(AND(F325=\"\"),G325=\"\"),H325=\"\"),\"\",SUM(F325:H325))","v":""}]
["2017-11-09",null,null,null,null,null,null,null,null,""]
["2017-11-10",null,null,null,null,null,null,null,null,""]
["2017-11-11",null,null,null,null,null,null,null,null,""]
["2017-11-12",null,null,null,null,null,null,null,null,""]
["2017-11-13",null,null,null,null,null,null,null,null,""]
["2017-11-14",null,null,null,null,null,null,null,null,""]
["2017-11-15",null,null,null,null,null,null,null,null,""]
["2017-11-16",null,null,null,null,null,null,null,null,""]
["2017-11-17",null,null,null,null,null,null,null,null,""]
["2017-11-18",null,null,null,null,null,null,null,null,""]
["2017-11-19",null,null,null,null,null,null,null,null,""]
["2017-11-20",null,null,null,null,null,null,null,null,""]
["2017-11-21",null,null,null,null,null,null,null,null,""]
["2017-11-22",null,null,null,null,null,null,null,null,""]
["2017-11-23",null,null,null,null,null,null,null,null,""]
["2017-11-24",null,null,null,null,null,null,null,null,""]
["2017-11-25",null,null,null,null,null,null,null,null,""]
["2017-11-26",null,null,null,null,null,null,null,null,""]
["2017-11-27",null,null,null,null,null,null,null,null,""]
["2017-11-28",null,null,null,null,null,null,null,null,""]
["2017-11-29",null,null,null,null,null,null,null,null,""]
["2017-11-30",null,null,null,null,null,null,null,null,""]
["DECEMBRE",null,null,null,null,null,null,null,null,{"$f":"SUM(J349:J379)","v":0}]
["2017-12-01",null,null,null,null,null,null,null,null,""]
["2017-12-02",null,null,null,null,null,null,null,null,""]
["2017-12-03",null,null,null,null,null,null,null,null,""]
["2017-12-04",null,null,null,null,null,null,null,null,""]
["2017-12-05",null,null,null,null,null,null,null,null,""]
["2017-12-06",null,null,null,null,null,null,null,null,""]
["2017-12-07",null,null,null,null,null,null,null,null,""]
["2017-12-08",null,null,null,null,null,null,null,null,""]
["2017-12-09",null,null,null,null,null,null,null,null,""]
["2017-12-10",null,null,null,null,null,null,null,null,""]
["2017-12-11",null,null,null,null,null,null,null,null,""]
["2017-12-12",null,null,null,null,null,null,null,null,""]
["2017-12-13",null,null,null,null,null,null,null,null,""]
["2017-12-14",null,null,null,null,null,null,null,null,""]
["2017-12-15",null,null,null,null,null,null,null,null,""]
["2017-12-16",null,null,null,null,null,null,null,null,""]
["2017-12-17",null,null,null,null,null,null,null,null,""]
["2017-12-18",null,null,null,null,null,null,null,null,""]
["2017-12-19",null,null,null,null,null,null,null,null,""]
["2017-12-20",null,null,null,null,null,null,null,null,""]
["2017-12-21",null,null,null,null,null,null,null,null,""]
["2017-12-22",null,null,null,null,null,null,null,null,""]
["2017-12-23",null,null,null,null,null,null,null,null,""]
["2017-12-24",null,null,null,null,null,null,null,null,""]
["2017-12-25",null,null,null,null,null,null,null,null,""]
["2017-12-26",null,null,null,null,null,null,null,null,""]
["2017-12-27",null,null,null,null,null,null,null,null,""]
["2017-12-28",null,null,null,null,null,null,null,null,""]
["2017-12-29",null,null,null,null,null,null,null,null,""]
["2017-12-30",null,null,null,null,null,null,null,null,""]
["2017-12-31",null,null,null,null,null,null,null,null,""]

{"sheet":"Recap Mensuel","index":3,"n_rows":0,"n_cols":0,"rows_kept":0,"cut":false,"hidden":false,"merged":[]}

{"sheet":"Recap Articles","index":4,"n_rows":16,"n_cols":7,"rows_kept":16,"cut":false,"hidden":false,"merged":[[6,0,6,1],[6,3,6,4],[6,6,6,7],[0,0,0,8],[1,0,1,1],[1,3,1,4],[1,6,1,7],[5,0,5,1]]}
["SUIVI ARTICLES EXERCICE"]
["ZAO",null,null,"BOY DIFFUSION",null,null,"CHARME D'ORIENT"]
["Accessoire",null,null,"Consommable",null,null,"Cabine"]
["Produit vente",null,null,null,null,null,"Vente"]
["Testeur"]
[]
["ARTICLES DE PARIS",null,null,"AUTOUR D'ELLE",null,null,"PRESTATION DE SERVICE"]
["Bijou",null,null,"Bijou",null,null,"PRESTA"]
["Foulard",null,null,"Foulard"]
["Ceinture",null,null,"Ceinture"]
["Prêt à porter",null,null,"Prêt à porter"]
["Chapeau",null,null,"Chapeau"]
["Sac",null,null,"Sac"]
["Maroquinerie",null,null,"Maroquinerie"]
["Chaussure",null,null,"Chaussure"]
["Divers",null,null,"Divers"]

{"sheet":"Réception","index":5,"n_rows":30,"n_cols":12,"rows_kept":30,"cut":false,"hidden":false,"merged":[[0,0,0,8],[1,0,1,1],[5,0,5,1],[6,0,6,1],[6,3,6,4],[1,6,1,7],[1,3,1,4]]}
["RECEPTION MARCHANDISE"]
["ZAO",null,null,"BOY DIFFUSION",null,null,"CHARME D'ORIENT",null,null,null,"ZAO"]
["Accessoire",null,null,"Consommable",null,null,"Cabine",null,null,null,"ACCESS",{"$f":"B3+'Fournisseur & Stock'!B5","v":12}]
["Produit vente",null,null,null,null,null,"Vente",null,null,null,"PDT VTE",{"$f":"B4+'Fournisseur & Stock'!B6","v":12}]
["Testeur",null,null,null,null,null,null,null,null,null,"TESTEUR",{"$f":"B5+'Fournisseur & Stock'!B7","v":30}]
[null,null,null,null,null,null,null,null,null,null,"BOY"]
["ARTICLES DE PARIS",null,null,"AUTOUR D'ELLE",null,null,null,null,null,null,"CONSOMMABLE",{"$f":"E3+'Fournisseur & Stock'!B9","v":3}]
["Bijou",null,null,"Bijou",null,null,null,null,null,null,"PARIS"]
["Foulard",null,null,"Foulard",null,null,null,null,null,null,"Bijou",{"$f":"B8+'Fournisseur & Stock'!B11","v":2}]
["Ceinture",null,null,"Ceinture",null,null,null,null,null,null,"Foulard",{"$f":"B9+'Fournisseur & Stock'!B12","v":2}]
["Prêt à porter",null,null,"Prêt à porter",null,null,null,null,null,null,"Ceinture",{"$f":"B10+'Fournisseur & Stock'!B13","v":2}]
["Chapeau",null,null,"Chapeau",null,null,null,null,null,null,"Prêt à porter",{"$f":"B11+'Fournisseur & Stock'!B14","v":2}]
["Sac",null,null,"Sac",null,null,null,null,null,null,"Chapeau",{"$f":"B12+'Fournisseur & Stock'!B15","v":2}]
["Maroquinerie",null,null,"Maroquinerie",null,null,null,null,null,null,"Sac",{"$f":"B13+'Fournisseur & Stock'!B16","v":2}]
["Chaussure",null,null,"Chaussure",null,null,null,null,null,null,"Maroquinerie",{"$f":"B14+'Fournisseur & Stock'!B17","v":2}]
["Divers",null,null,"Divers",null,null,null,null,null,null,"Chaussure",{"$f":"B15+'Fournisseur & Stock'!B18","v":3}]
[null,null,null,null,null,null,null,null,null,null,"Divers",{"$f":"B16+'Fournisseur & Stock'!B19","v":3}]
[null,null,null,null,null,null,null,null,null,null,"AUTOUR"]
[null,null,null,null,null,null,null,null,null,null,"Bijou",{"$f":"E8+'Fournisseur & Stock'!B21","v":2}]
[null,null,null,null,null,null,null,null,null,null,"Foulard",{"$f":"E9+'Fournisseur & Stock'!B22","v":2}]
[null,null,null,null,null,null,null,null,null,null,"Ceinture",{"$f":"E10+'Fournisseur & Stock'!B23","v":2}]
[null,null,null,null,null,null,null,null,null,null,"Prêt à porter",{"$f":"E11+'Fournisseur & Stock'!B24","v":2}]
[null,null,null,null,null,null,null,null,null,null,"Chapeau",{"$f":"E12+'Fournisseur & Stock'!B25","v":2}]
[null,null,null,null,null,null,null,null,null,null,"Sac",{"$f":"E13+'Fournisseur & Stock'!B26","v":2}]
[null,null,null,null,null,null,null,null,null,null,"Maroquinerie",{"$f":"E14+'Fournisseur & Stock'!B27","v":2}]
[null,null,null,null,null,null,null,null,null,null,"Chaussure",{"$f":"E15+'Fournisseur & Stock'!B28","v":3}]
[null,null,null,null,null,null,null,null,null,null,"Divers",{"$f":"E16+'Fournisseur & Stock'!B29","v":103}]
[null,null,null,null,null,null,null,null,null,null,"CHARME"]
[null,null,null,null,null,null,null,null,null,null,"CABINE",{"$f":"H3+'Fournisseur & Stock'!B31","v":2}]
[null,null,null,null,null,null,null,null,null,null,"VENTE",{"$f":"H4+'Fournisseur & Stock'!B32","v":3}]

{"sheet":"Fournisseur & Stock","index":6,"n_rows":32,"n_cols":9,"rows_kept":32,"cut":false,"hidden":false,"merged":[[9,0,9,4],[19,0,19,4],[29,0,29,4],[0,0,0,4],[3,0,3,4],[7,0,7,4]]}
["STOCK"]
["SOUS FAMILLE","QTT EN STOCK","STOCK IDEAL","RUPTURE","QTT A COMMANDER"]
[]
["FOURNISSEUR ZAO",null,null,null,null,null,null,"ZAO"]
["Accesoire",12,8,{"$f":"IF(B5<=C5,\"X\",\"\")","v":""},{"$f":"IF(D5=\"\",\"\",C5-B5)","v":""},null,null,"ACCESS",12]
["Produit vente",12,8,{"$f":"IF(B6<=C6,\"X\",\"\")","v":""},{"$f":"IF(D6=\"\",\"\",C6-B6)","v":""},null,null,"PDT VTE",12]
["Testeur",30,8,"","",null,null,"TESTEUR",30]
["FOURNISSEUR BOY DIFFUSION",null,null,null,null,null,null,"BOY"]
["Consommable",3,8,{"$f":"IF(B9<=C9,\"X\",\"\")","v":"X"},5,null,null,"CONSOMMABLE",3]
["FOURNISSEUR Article de Paris",null,null,null,null,null,null,"PARIS"]
["Bijou",2,8,{"$f":"IF(B11<=C11,\"X\",\"\")","v":"X"},6,null,null,"Bijou",2]
["Foulard",2,8,{"$f":"IF(B12<=C12,\"X\",\"\")","v":"X"},6,null,null,"Foulard",2]
["Ceinture",2,8,"X",6,null,null,"Ceinture",2]
["Prêt à porter",2,8,"X",6,null,null,"Prêt à porter",2]
["Chapeau",2,8,"X",6,null,null,"Chapeau",2]
["Sac",2,8,"X",6,null,null,"Sac",2]
["Maroquinerie",2,8,"X",6,null,null,"Maroquinerie",2]
["Chaussure",3,8,"X",5,null,null,"Chaussure",3]
["Divers",3,8,"X",5,null,null,"Divers",3]
["FOURNISSEUR Autour d'Elle",null,null,null,null,null,null,"AUTOUR"]
["Bijou",2,8,{"$f":"IF(B21<=C21,\"X\",\"\")","v":"X"},{"$f":"IF(D21=\"\",\"\",C21-B21)","v":6},null,null,"Bijou",2]
["Foulard",2,8,{"$f":"IF(B22<=C22,\"X\",\"\")","v":"X"},6,null,null,"Foulard",2]
["Ceinture",2,8,"X",6,null,null,"Ceinture",2]
["Prêt à porter",2,8,"X",6,null,null,"Prêt à porter",2]
["Chapeau",2,8,"X",6,null,null,"Chapeau",2]
["Sac",2,8,"X",6,null,null,"Sac",2]
["Maroquinerie",2,8,"X",6,null,null,"Maroquinerie",2]
["Chaussure",3,8,"X",5,null,null,"Chaussure",3]
["Divers",103,8,"","",null,null,"Divers",103]
["FOURNISSEUR Charme d'Orient",null,null,null,null,null,null,"CHARME"]
["Cabine",2,8,{"$f":"IF(B31<=C31,\"X\",\"\")","v":"X"},{"$f":"IF(D31=\"\",\"\",C31-B31)","v":6},null,null,"CABINE",2]
["Vente",3,8,{"$f":"IF(B32<=C32,\"X\",\"\")","v":"X"},5,null,null,"VENTE",3]